fUSD/lending_fUSD_20260405
["ID","MTS","AMOUNT","RATE_DAILY","PERIOD"]
[419811699,1775393457352,-1525.0,0.000159,5]
[419811700,1775393457362,-152.0,0.000159,5]
[419811701,1775393457371,-1525.0,0.000159,5]
[419811702,1775393457380,-152.0,0.000159,5]
[419811703,1775393457389,-1525.0,0.000159,5]
[419811704,1775393457400,-152.0,0.000159,5]
[419811705,1775393457409,-1525.0,0.000159,5]
[419811706,1775393457419,-152.0,0.000159,5]
[419811707,1775393457429,-1525.0,0.000159,5]
[419811708,1775393457439,-152.0,0.000159,5]
[419811709,1775393457449,-1525.0,0.000159,5]
[419811710,1775393457458,-152.0,0.000159,5]
[419811711,1775393457468,-1525.0,0.000159,5]
[419811712,1775393457477,-152.0,0.000159,5]
[419811713,1775393457487,-1525.0,0.000159,5]
[419811714,1775393457496,-152.0,0.000159,5]
[419811715,1775393457506,-152.0,0.000159,5]
[419811716,1775393457515,-152.0,0.000159,5]
[419811717,1775393457524,-154.50523658,0.000159,5]
[419811718,1775393457534,-1525.0,0.000159,5]
[419811719,1775393457543,-1525.0,0.000159,5]
[419811720,1775393457552,-1525.0,0.000159,5]
[419811721,1775393457562,-1525.0,0.000159,5]
[419811722,1775393457572,-1525.0,0.000159,5]
[419811723,1775393457582,-1525.0,0.000159,5]
[419811724,1775393457592,-1575.70159455,0.000159,5]
[419811725,1775393457601,-157.47547331,0.000159,5]
[419811726,1775393457611,-151.1705,0.000159,2]
[419811727,1775393457621,-151.1705,0.000159,2]
[419811728,1775393457631,-151.1705,0.000159,2]
[419811729,1775393457641,-2000.0,0.00015901,2]
[419811730,1775393457651,-150.0,0.0001591,2]
[419811731,1775393457661,-150.0,0.00015911,2]
[419811732,1775393457671,-150.0,0.00015913,2]
[419811733,1775393457681,-150.0,0.00015913,2]
[419811734,1775393457691,-150.0,0.00015916,2]
[419811735,1775393457700,-150.0,0.00015916,2]
[419811736,1775393457710,-150.0,0.00015918,2]
[419811737,1775393457719,-150.0,0.0001593,2]
[419811738,1775393457728,-150.0,0.00015932,2]
[419811739,1775393457738,-150.0,0.00015936,2]
[419811740,1775393457747,-150.0,0.00015938,2]
[419811741,1775393457756,-150.0,0.00015942,2]
[419811742,1775393457766,-150.0,0.00015944,2]
[419811743,1775393457775,-150.0,0.00015944,2]
[419811744,1775393457784,-150.0,0.00015948,2]
[419811745,1775393457794,-150.0,0.00015948,2]
[419811746,1775393457803,-150.0,0.00015955,2]
[419811747,1775393457812,-150.0,0.00015959,2]
[419811748,1775393457822,-5000.0,0.0001596,2]
[419811749,1775393457830,-150.0,0.00015965,2]
[419811750,1775393457839,-150.0,0.00015971,2]
[419811751,1775393457849,-150.0,0.00015972,2]
[419811752,1775393457858,-150.0,0.00015972,2]
[419811753,1775393457867,-500.13152132,0.00015973,2]
[419811754,1775393457876,-150.0,0.00015977,2]
[419811755,1775393457886,-150.0,0.00015979,2]
[419811756,1775393457895,-150.0,0.00015983,2]
[419811757,1775393457904,-256.446677,0.00015997,2]
[419811758,1775393457913,-3620.0,0.00015998,2]
[419811759,1775393457923,-666.0,0.00015999,2]
[419811760,1775393457934,-608.83994388,0.00015999,2]
[419811761,1775393457945,-666.0,0.00015999,2]
[419811762,1775393457955,-666.0,0.00015999,2]
[419811763,1775393457965,-150.14541726,0.00016,2]
[419811764,1775393457975,-153.46464446,0.00016,2]
[419811765,1775393457985,-214.21185671,0.00016,2]
[419811766,1775393457995,-245.0843554,0.00016,2]
[419811767,1775393458004,-150.17540857,0.00016,2]
[419811768,1775393458014,-150.60277619,0.00016,2]
[419811769,1775393458023,-151.22967101,0.00016,2]
[419811770,1775393458033,-151.90807937,0.00016,2]
[419811771,1775393458043,-233.2638427,0.00016,2]
[419811772,1775393458052,-154.07899059,0.00016,2]
[419811773,1775393458061,-151.75828689,0.00016,2]
[419811774,1775393458070,-267.10584669,0.00016,2]
[419811775,1775393458080,-2124671.40324767,0.00016,2]
[419811776,1775393458090,-151.0,0.00016,2]
[419811777,1775393458098,-362.86436321,0.00016,2]
[419811778,1775393458107,-2000.0,0.00016,2]
[419811779,1775393458116,-200.0,0.00016,2]
[419811780,1775393458125,-1326.87745236,0.00016,2]
[419811781,1775393458134,-200.0,0.00016,2]
[419811782,1775393458143,-250.0,0.00016,2]
[419811783,1775393458152,-250.0,0.00016,2]
[419811784,1775393458161,-250.0,0.00016,2]
[419811785,1775393458170,-200.0,0.00016,2]
[419811786,1775393458179,-278.4301169,0.00016,2]
[419811787,1775393458188,-200.0,0.00016,2]
[419811788,1775393458198,-2000.0,0.00016001,2]
[419811789,1775393458206,-200.0,0.00016028,2]
[419811790,1775393458215,-5888.0,0.00016037,2]
[419811791,1775393458224,-5888.0,0.00016045,2]
[419811792,1775393458233,-273.0,0.0001609,2]
[419811793,1775393458242,-200.0,0.0001609,2]
[419811794,1775393458257,-217.0,0.0001609,2]
[419811795,1775393458280,-278.4301169,0.000161,2]
[419811796,1775393458298,-1441.20951351,0.00016101,30]
[419811797,1775393458318,-1500.0,0.00016101,2]
[419811798,1775393458336,-1500.0,0.00016101,2]
[419811799,1775393458356,-1500.0,0.00016101,2]
[419811800,1775393458372,-1500.0,0.00016101,2]
[419811801,1775393458389,-1500.0,0.00016101,2]
[419811802,1775393458409,-1500.0,0.00016101,2]
[419811803,1775393458429,-1500.0,0.00016101,2]
[419811804,1775393458445,-1500.0,0.00016101,2]
[419811805,1775393458463,-1500.0,0.00016101,2]
[419811806,1775393458478,-1500.0,0.00016101,2]
[419811807,1775393458496,-1583.61403,0.00016101,2]
[419811808,1775393458514,-1453.70222906,0.00016114,7]
[419811809,1775393458529,-666.0,0.00016115,2]
[419811810,1775393458544,-666.0,0.00016115,2]
[419811811,1775393458560,-28985.77,0.00016116,2]
[419811812,1775393458575,-8076.87,0.00016116,2]
[419811813,1775393458592,-150.0,0.00016137,2]
[419811814,1775393458608,-751.29,0.00016141,2]
[419811815,1775393458624,-806.66,0.00016141,2]
[419811816,1775393458639,-1268.28,0.00016141,2]
[419811817,1775393458655,-4870.0,0.00016141,2]
[419811818,1775393458671,-5888.0,0.0001615,2]
[419811819,1775393458686,-529.28,0.00016154,30]
[419811820,1775393458702,-200.0,0.0001616,2]
[419811821,1775393458718,-200.0,0.0001616,2]
[419811822,1775393458734,-200.0,0.0001616,2]
[419811823,1775393458750,-200.0,0.0001616,2]
[419811824,1775393458766,-500.0,0.00016161,2]
[419811825,1775393458782,-800.96674089,0.00016164,2]
[419811826,1775393458798,-281.8434,0.000162,2]
[419811827,1775393458813,-719.68,0.0001621,2]
[419811828,1775393458829,-4870.0,0.00016218,2]
[419811829,1775393458854,-321.08,0.00016235,2]
[419811830,1775393458871,-2000.0,0.00016261,2]
[419811831,1775393458887,-4000.0,0.00016282,2]
[419811832,1775393458903,-321.08,0.00016317,2]
[419811833,1775393458918,-200.0,0.00016322,2]
[419811834,1775393458933,-200.0,0.00016322,2]
[419811835,1775393458950,-200.0,0.00016322,2]
[419811836,1775393458966,-200.0,0.00016322,2]
[419811837,1775393458981,-200.0,0.0001634,2]
[419811838,1775393458997,-5888.0,0.00016364,2]
[419811839,1775393459013,-4870.0,0.00016384,2]
[419811840,1775393459029,-321.08,0.00016398,2]
[419811841,1775393459044,-4870.0,0.00016399,2]
[419811842,1775393459061,-2000.0,0.000164,2]
[419811843,1775393459076,-150.0,0.000164,2]
[419811844,1775393459092,-213.0,0.000164,2]
[419811845,1775393459107,-302.46,0.000164,2]
[419811846,1775393459123,-356.05031652,0.000164,2]
[419811847,1775393459139,-4870.0,0.0001641,2]
[419811848,1775393459155,-500.0,0.00016435,2]
[419811849,1775393459171,-500.0,0.00016437,2]
[419811850,1775393459187,-666.0,0.00016437,2]
[419811851,1775393459203,-666.0,0.00016437,2]
[419811852,1775393459217,-1781.0,0.00016438,2]
[419811853,1775393459234,-1781.0,0.00016438,2]
[419811854,1775393459249,-1781.0,0.00016438,2]
[419811855,1775393459265,-1781.0,0.00016438,2]
[419811856,1775393459281,-1781.0,0.00016438,2]
[419811857,1775393459296,-1781.0,0.00016438,2]
[419811858,1775393459312,-1781.0,0.00016438,2]
[419811859,1775393459327,-1781.0,0.00016438,2]
[419811860,1775393459345,-1781.0,0.00016438,2]
[419811861,1775393459360,-1781.0,0.00016438,2]
[419811862,1775393459376,-1781.0,0.00016438,2]
[419811863,1775393459391,-1781.0,0.00016438,2]
[419811864,1775393459407,-1781.0,0.00016438,2]
[419811865,1775393459424,-1781.0,0.00016438,2]
[419811866,1775393459439,-1781.0,0.00016438,2]
[419811867,1775393459454,-1781.0,0.00016438,2]
[419811868,1775393459470,-1781.0,0.00016438,2]
[419811869,1775393459485,-1781.0,0.00016438,2]
[419811870,1775393459501,-1781.0,0.00016438,2]
[419811871,1775393459516,-1781.0,0.00016438,2]
[419811872,1775393459534,-1781.0,0.00016438,2]
[419811873,1775393459553,-1781.0,0.00016438,2]
[419811874,1775393459569,-1781.0,0.00016438,2]
[419811875,1775393459584,-1787.86094929,0.00016438,2]
[419811876,1775393459600,-2500.0,0.00016438,2]
[419811877,1775393459615,-2500.0,0.00016438,2]
[419811878,1775393459630,-2500.0,0.00016438,2]
[419811879,1775393459645,-2500.0,0.00016438,2]
[419811880,1775393459661,-2500.0,0.00016438,2]
[419811881,1775393459678,-2500.0,0.00016438,2]
[419811882,1775393459694,-2500.0,0.00016438,2]
[419811883,1775393459710,-2500.0,0.00016438,2]
[419811884,1775393459726,-2500.0,0.00016438,2]
[419811885,1775393459741,-2500.0,0.00016438,2]
[419811886,1775393459756,-2500.0,0.00016438,2]
[419811887,1775393459772,-2500.0,0.00016438,2]
[419811888,1775393459788,-2500.0,0.00016438,2]
[419811889,1775393459803,-2500.0,0.00016438,2]
[419811890,1775393459818,-2500.0,0.00016438,2]
[419811891,1775393459832,-2500.0,0.00016438,2]
[419811892,1775393459847,-2500.0,0.00016438,2]
[419811893,1775393459863,-2500.0,0.00016438,2]
[419811894,1775393459879,-2500.0,0.00016438,2]
[419811895,1775393459894,-2500.0,0.00016438,2]
[419811896,1775393459909,-2500.0,0.00016438,2]
[419811897,1775393459926,-2500.0,0.00016438,2]
[419811898,1775393459941,-2500.0,0.00016438,2]
[419811899,1775393459957,-2500.0,0.00016438,2]
[419811900,1775393459974,-2500.0,0.00016438,2]
[419811901,1775393459989,-2500.0,0.00016438,2]
[419811902,1775393460005,-259.04550794,0.00016438,2]
[419811903,1775393460021,-347.358444,0.00016438,2]
[419811904,1775393460036,-347.358444,0.00016438,2]
[419811905,1775393460052,-347.358444,0.00016438,2]
[419811906,1775393460068,-347.358444,0.00016438,2]
[419811907,1775393460083,-151.0,0.00016438,2]
[419811908,1775393460099,-151.0,0.00016438,2]
[419811909,1775393460114,-151.0,0.00016438,2]
[419811910,1775393460129,-151.0,0.00016438,2]
[419811911,1775393460144,-1191.47,0.00016438,2]
[419811912,1775393460158,-500.0,0.00016438,2]
[419811913,1775393460172,-500.0,0.00016438,2]
[419811914,1775393460190,-900.0,0.00016438,2]
[419811915,1775393460205,-250.0,0.00016438,2]
[419811916,1775393460220,-500.0,0.00016438,2]
[419811917,1775393460236,-229.13,0.00016438,2]
[419811918,1775393460252,-1592.56,0.00016438,2]
[419811919,1775393460268,-151.0,0.00016438,2]
[419811920,1775393460284,-151.0,0.00016438,2]
[419811921,1775393460299,-500.0,0.00016438,2]
[419811922,1775393460315,-1500.0,0.00016438,2]
[419811923,1775393460329,-3000.0,0.00016438,2]
[419811924,1775393460344,-844.02569489,0.00016438,2]
[419811925,1775393460360,-3000.0,0.00016438,2]
[419811926,1775393460375,-3000.0,0.00016438,2]
[419811927,1775393460389,-178.56657148,0.00016474,2]
[419811928,1775393460404,-5888.0,0.00016478,2]
[419811929,1775393460420,-4870.0,0.0001648,2]
[419811930,1775393460434,-4870.0,0.00016484,2]
[419811931,1775393460449,-200.0,0.00016485,2]
[419811932,1775393460465,-200.0,0.00016485,2]
[419811933,1775393460480,-200.0,0.00016485,2]
[419811934,1775393460496,-200.0,0.00016485,2]
[419811935,1775393460510,-1600.0,0.00016499,2]
[419811936,1775393460525,-6583.10663986,0.000165,2]
[419811937,1775393460540,-300.0,0.00016535,2]
[419811938,1775393460556,-300.0,0.00016535,2]
[419811939,1775393460570,-300.0,0.00016535,2]
[419811940,1775393460586,-666.0,0.00016535,2]
[419811941,1775393460601,-469.0,0.00016575,2]
[419811942,1775393460616,-200.0,0.00016576,2]
[419811943,1775393460633,-5888.0,0.00016585,2]
[419811944,1775393460648,-363.58096714,0.000166,2]
[419811945,1775393460662,-4870.0,0.00016618,2]
[419811946,1775393460679,-4870.0,0.0001663,2]
[419811947,1775393460694,-5888.0,0.00016636,2]
[419811948,1775393460708,-4870.0,0.00016637,2]
[419811949,1775393460722,-200.0,0.0001665,2]
[419811950,1775393460738,-200.0,0.0001665,2]
[419811951,1775393460752,-200.0,0.0001665,2]
[419811952,1775393460768,-200.0,0.0001665,2]
[419811953,1775393460783,-5888.0,0.00016661,2]
[419811954,1775393460797,-4000.0,0.0001667,2]
[419811955,1775393460812,-5888.0,0.00016687,2]
[419811956,1775393460827,-300.0,0.00016688,2]
[419811957,1775393460841,-300.0,0.00016688,2]
[419811958,1775393460855,-387.13925442,0.00016688,2]
[419811959,1775393460871,-666.0,0.00016688,2]
[419811960,1775393460886,-4870.0,0.00016705,2]
[419811961,1775393460901,-500.0,0.00016709,2]
[419811962,1775393460910,-159.82,0.00016712,2]
[419811963,1775393461353,-508.0,0.00016759,5]
[419811964,1775393461401,-500.0,0.00016767,2]
[419811965,1775393461432,-4870.0,0.00016771,2]
[419811966,1775393461442,-463.23,0.00016773,2]
[419811967,1775393461451,-5888.0,0.00016812,2]
[419811968,1775393461460,-4870.0,0.00016822,2]
[419811969,1775393461470,-403.04138764,0.00016885,2]
[419811970,1775393461479,-10286.0724003,0.000169,2]
[419811971,1775393461489,-955.56047568,0.00016906,30]
[419811972,1775393461498,-26786.09931769,0.00016914,2]
[419811973,1775393461508,-396.68097798,0.00016983,2]
[419811974,1775393461517,-599.51032893,0.00016986,2]
[419811975,1775393461527,-2391.53192442,0.00016986,2]
[419811976,1775393461537,-1511.94070983,0.00016986,2]
[419811977,1775393461547,-256.446677,0.00016997,2]
[419811978,1775393461556,-300.0,0.00016999,2]
[419811979,1775393461566,-300.0,0.00016999,2]
[419811980,1775393461575,-666.0,0.00016999,2]
[419811981,1775393461587,-312.83646191,0.00017,2]
[419811982,1775393461596,-1171329.62683614,0.00017,2]
[419811983,1775393461605,-5964.10599486,0.00017,2]
[419811984,1775393461615,-350.0,0.00017,2]
[419811985,1775393461624,-198.932905,0.00017,2]
[419811986,1775393461634,-198.932905,0.00017,2]
[419811987,1775393461643,-198.932905,0.00017,2]
[419811988,1775393461652,-198.932905,0.00017,2]
[419811989,1775393461662,-155.362689,0.00017,2]
[419811990,1775393461671,-4870.0,0.00017001,2]
[419811991,1775393461682,-4495.01,0.00017019,2]
[419811992,1775393461691,-10406.54,0.00017019,2]
[419811993,1775393461701,-1597.49,0.00017019,2]
[419811994,1775393461711,-4000.0,0.00017058,2]
[419811995,1775393461720,-300.0,0.00017099,2]
[419811996,1775393461729,-300.0,0.00017099,2]
[419811997,1775393461739,-666.0,0.00017099,2]
[419811998,1775393461748,-89273.48240247,0.000171,2]
[419811999,1775393461758,-5888.0,0.00017116,2]
[419812000,1775393461767,-12649.0,0.00017398,2]
[419812001,1775393461776,-660.90504219,0.00017422,4]
[419812002,1775393461786,-287.1273,0.00017428,2]
[419812003,1775393461795,-463.23311998,0.00017432,2]
[419812004,1775393461805,-150.0,0.0001749,2]
[419812005,1775393461814,-224.902,0.0001749,2]
[419812006,1775393461823,-250.0,0.0001749,2]
[419812007,1775393461833,-238.347,0.0001749,2]
[419812008,1775393461843,-250.0,0.0001749,2]
[419812009,1775393461852,-162.919,0.0001749,2]
[419812010,1775393461862,-250.0,0.0001749,2]
[419812011,1775393461871,-1115.0,0.00017524,2]
[419812012,1775393461880,-705.71,0.00017579,30]
[419812013,1775393461890,-4409.0,0.00017596,2]
[419812014,1775393461899,-319.7358,0.000176,2]
[419812015,1775393461908,-626.28,0.000177,2]
[419812016,1775393461918,-2103.29,0.000177,2]
[419812017,1775393461927,-788.8207043,0.000177,2]
[419812018,1775393461936,-1640.01,0.00017728,2]
[419812019,1775393461945,-19323.84,0.00017728,2]
[419812020,1775393461955,-931.27802378,0.00017751,30]
[419812021,1775393461964,-1000.0,0.00017808,2]
[419812022,1775393461973,-2000.0,0.00017822,2]
[419812023,1775393461982,-500.0,0.00017822,2]
[419812024,1775393461992,-1010.07365691,0.0001786,2]
[419812025,1775393462001,-2000.0,0.00017887,2]
[419812026,1775393462011,-1232.42529034,0.0001789,2]
[419812027,1775393462020,-1079.94388733,0.0001789,2]
[419812028,1775393462030,-508.0,0.00017976,6]
[419812029,1775393462039,-20000.0,0.0001799,2]
[419812030,1775393462049,-300.0,0.00017999,2]
[419812031,1775393462060,-300.0,0.00017999,2]
[419812032,1775393462070,-666.0,0.00017999,2]
[419812033,1775393462079,-150.0,0.00017999,2]
[419812034,1775393462089,-110304.11920261,0.00018,2]
[419812035,1775393462098,-1201.13504882,0.00018,2]
[419812036,1775393462107,-1001.55590549,0.00018,2]
[419812037,1775393462117,-309.66593796,0.00018,2]
[419812038,1775393462127,-151.0,0.00018003,5]
[419812039,1775393462138,-1052.848,0.0001802,2]
[419812040,1775393462148,-1348.652,0.0001802,2]
[419812041,1775393462158,-3633.957,0.0001802,2]
[419812042,1775393462169,-1267.843,0.0001802,2]
[419812043,1775393462178,-276.717,0.0001802,2]
[419812044,1775393462187,-415.0,0.0001802,2]
[419812045,1775393462197,-3770.0,0.0001802,2]
[419812046,1775393462206,-300.0,0.00018082,2]
[419812047,1775393462216,-300.0,0.00018082,2]
[419812048,1775393462227,-1792.73232799,0.000181,2]
[419812049,1775393462237,-1572.0,0.00018158,2]
[419812050,1775393462248,-200.947812,0.000182,2]
[419812051,1775393462258,-6579.8,0.00018212,2]
[419812052,1775393462267,-607.5,0.00018231,2]
[419812053,1775393462276,-2040.19,0.00018231,2]
[419812054,1775393462287,-500.0,0.00018329,2]
[419812055,1775393462297,-300.0,0.00018355,2]
[419812056,1775393462307,-300.0,0.00018355,2]
[419812057,1775393462316,-89194.4,0.00018356,2]
[419812058,1775393462326,-277.006862,0.00018415,2]
[419812059,1775393462335,-371.47,0.00018438,2]
[419812060,1775393462344,-445.57,0.00018438,2]
[419812061,1775393462354,-458.67,0.00018438,2]
[419812062,1775393462363,-462.66,0.00018438,2]
[419812063,1775393462372,-1115.0,0.00018446,2]
[419812064,1775393462381,-300.0,0.00018554,2]
[419812065,1775393462390,-300.0,0.00018554,2]
[419812066,1775393462399,-1592.56,0.00018601,2]
[419812067,1775393462409,-445.57,0.00018644,2]
[419812068,1775393462418,-1977.09,0.00018762,2]
[419812069,1775393462427,-445.57,0.00018849,2]
[419812070,1775393462437,-462.66,0.00018849,2]
[419812071,1775393462446,-751.29,0.00018889,2]
[419812072,1775393462456,-806.66,0.00018889,2]
[419812073,1775393462465,-1268.28,0.00018889,2]
[419812074,1775393462474,-351.0,0.00018895,4]
[419812075,1775393462484,-5209.15208035,0.00019,2]
[419812076,1775393462493,-2879.39950676,0.00019,2]
[419812077,1775393462502,-1790.85394797,0.00019,2]
[419812078,1775393462511,-400.0,0.00019,2]
[419812079,1775393462521,-151.0,0.00019003,5]
[419812080,1775393462530,-882.14,0.00019004,30]
[419812081,1775393462539,-1572.0,0.00019017,2]
[419812082,1775393462549,-445.57,0.00019055,2]
[419812083,1775393462558,-150.0,0.0001909,2]
[419812084,1775393462567,-362.7226,0.000191,2]
[419812085,1775393462576,-17709.0,0.00019138,2]
[419812086,1775393462586,-3716.00442167,0.00019152,2]
[419812087,1775393462598,-180.5762457,0.00019178,2]
[419812088,1775393462607,-150.0,0.00019178,2]
[419812089,1775393462617,-150.0,0.00019178,2]
[419812090,1775393462626,-150.0,0.00019178,2]
[419812091,1775393462637,-172.90865587,0.00019178,2]
[419812092,1775393462646,-3000.0,0.00019178,2]
[419812093,1775393462656,-1000.0,0.00019178,7]
[419812094,1775393462666,-150.0,0.00019178,2]
[419812095,1775393462675,-150.0,0.00019178,2]
[419812096,1775393462684,-508.0,0.00019192,7]
[419812097,1775393462695,-375.86491111,0.00019206,2]
[419812098,1775393462704,-371.48955732,0.0001926,2]
[419812099,1775393462714,-445.57,0.0001926,2]
[419812100,1775393462723,-458.68732607,0.0001926,2]
[419812101,1775393462732,-462.66,0.0001926,2]
[419812102,1775393462742,-500.0,0.00019274,2]
[419812103,1775393462751,-2811.0,0.00019337,2]
[419812104,1775393462760,-1115.0,0.00019417,2]
[419812105,1775393462770,-1913.99,0.0001947,2]
[419812106,1775393462779,-2000.0,0.00019513,2]
[419812107,1775393462788,-578.20924308,0.00019607,2]
[419812108,1775393462797,-500.0,0.00019607,2]
[419812109,1775393462807,-200.0,0.00019607,2]
[419812110,1775393462816,-500.0,0.00019607,2]
[419812111,1775393462825,-209.40437684,0.00019607,2]
[419812112,1775393462834,-500.0,0.00019607,2]
[419812113,1775393462843,-721.12765535,0.00019607,2]
[419812114,1775393462852,-500.0,0.00019607,2]
[419812115,1775393462862,-500.0,0.00019607,2]
[419812116,1775393462871,-500.0,0.00019607,2]
[419812117,1775393462880,-9552.16786547,0.00019607,2]
[419812118,1775393462889,-151.0,0.00019607,2]
[419812119,1775393462899,-151.0,0.00019607,2]
[419812120,1775393462908,-151.0,0.00019607,2]
[419812121,1775393462917,-154.76515316,0.00019607,2]
[419812122,1775393462926,-500.0,0.00019607,2]
[419812123,1775393462935,-500.0,0.00019607,2]
[419812124,1775393462944,-1428.38747117,0.00019607,2]
[419812125,1775393462953,-500.0,0.00019607,2]
[419812126,1775393462963,-500.0,0.00019607,2]
[419812127,1775393462972,-500.0,0.00019607,2]
[419812128,1775393462981,-500.0,0.00019607,2]
[419812129,1775393462990,-1000.0,0.00019607,2]
[419812130,1775393463000,-1000.0,0.00019607,2]
[419812131,1775393463010,-1000.0,0.00019607,2]
[419812132,1775393463019,-1000.0,0.00019607,2]
[419812133,1775393463029,-3000.0,0.00019607,2]
[419812134,1775393463038,-1000.0,0.00019607,2]
[419812135,1775393463047,-3000.0,0.00019607,2]
[419812136,1775393463056,-1000.0,0.00019607,2]
[419812137,1775393463066,-3000.0,0.00019607,2]
[419812138,1775393463075,-1000.0,0.00019607,2]
[419812139,1775393463084,-3000.0,0.00019607,2]
[419812140,1775393463094,-1000.0,0.00019607,2]
[419812141,1775393463103,-1000.0,0.00019607,2]
[419812142,1775393463112,-3000.0,0.00019607,2]
[419812143,1775393463121,-1000.0,0.00019607,2]
[419812144,1775393463130,-209.40437684,0.00019607,2]
[419812145,1775393463139,-3000.0,0.00019607,2]
[419812146,1775393463149,-1000.0,0.00019607,2]
[419812147,1775393463158,-3000.0,0.00019607,2]
[419812148,1775393463167,-3000.0,0.00019607,2]
[419812149,1775393463177,-3000.0,0.00019607,2]
[419812150,1775393463186,-3000.0,0.00019607,2]
[419812151,1775393463196,-3000.0,0.00019607,2]
[419812152,1775393463206,-174.61919141,0.00019607,2]
[419812153,1775393463216,-743.50770149,0.00019607,2]
[419812154,1775393463226,-200.0,0.00019607,2]
[419812155,1775393463235,-151.0,0.00019607,2]
[419812156,1775393463244,-151.0,0.00019607,2]
[419812157,1775393463253,-156.587,0.00019607,2]
[419812158,1775393463262,-195.25511793,0.00019607,2]
[419812159,1775393463272,-693.3919763,0.00019607,2]
[419812160,1775393463281,-500.0,0.00019607,2]
[419812161,1775393463291,-500.0,0.00019607,2]
[419812162,1775393463300,-500.0,0.00019607,2]
[419812163,1775393463310,-500.0,0.00019607,2]
[419812164,1775393463320,-500.0,0.00019607,2]
[419812165,1775393463329,-279.9045709,0.00019607,2]
[419812166,1775393463339,-170.0,0.00019607,2]
[419812167,1775393463348,-170.0,0.00019607,2]
[419812168,1775393463357,-170.0,0.00019607,2]
[419812169,1775393463367,-170.0,0.00019607,2]
[419812170,1775393463376,-170.0,0.00019607,2]
[419812171,1775393463386,-170.0,0.00019607,2]
[419812172,1775393463395,-170.0,0.00019607,2]
[419812173,1775393463405,-170.0,0.00019607,2]
[419812174,1775393463413,-170.0,0.00019607,2]
[419812175,1775393463422,-170.0,0.00019607,2]
[419812176,1775393463432,-170.0,0.00019607,2]
[419812177,1775393463441,-162.0,0.00019657,2]
[419812178,1775393463449,-500.0,0.00019662,2]
[419812179,1775393463459,-9905.5980765,0.00019662,2]
[419812180,1775393463468,-151.0,0.00019662,2]
[419812181,1775393463478,-500.0,0.00019717,2]
[419812182,1775393463487,-10272.10520533,0.00019717,2]
[419812183,1775393463497,-151.0,0.00019717,2]
[419812184,1775393463507,-250.0,0.00019726,2]
[419812185,1775393463516,-250.0,0.00019726,2]
[419812186,1775393463525,-500.0,0.00019772,2]
[419812187,1775393463535,-10652.17309792,0.00019772,2]
[419812188,1775393463544,-151.0,0.00019772,2]
[419812189,1775393463553,-250.0,0.00019816,2]
[419812190,1775393463563,-500.0,0.00019827,2]
[419812191,1775393463572,-5850.7516326,0.00019827,2]
[419812192,1775393463582,-151.0,0.00019827,2]
[419812193,1775393463591,-500.0,0.0001984,2]
[419812194,1775393463601,-200.0,0.0001984,2]
[419812195,1775393463610,-500.0,0.00019882,2]
[419812196,1775393463620,-151.0,0.00019882,2]
[419812197,1775393463629,-4968.18445726,0.000199,3]
[419812198,1775393463639,-500.0,0.00019937,2]